{"text_format":"3","workbook":"xlsx","n_sheets":1,"sheets":["Ostunimekiri"],"not_rendered":{"images":1,"defined_names":3},"read":"whole","date_system":"1900"}

{"sheet":"Ostunimekiri","index":0,"n_rows":31,"n_cols":8,"rows_kept":31}
[null,"Ostunimekiri"]
[null,"KUUPÄEV"]
[null,"Olemas?","Kaup","Kategooria","Kogus","Hind","Laiendatud hind","Kaubamärk/kommentaarid"]
[null,null,"Apelsinid","Puu- ja köögiviljad",null,null,{"$f":"IFERROR(SUM(Ostunimekiri[[#This Row],[Kogus]]*Ostunimekiri[[#This Row],[Hind]]), \"\")","v":{"v":0,"d":"0.00 €"}}]
[null,null,"Õunad","Puu- ja köögiviljad",null,null,{"$f":"IFERROR(SUM(Ostunimekiri[[#This Row],[Kogus]]*Ostunimekiri[[#This Row],[Hind]]), \"\")","v":{"v":0,"d":"0.00 €"}}]
[null,null,"Banaanid","Puu- ja köögiviljad",null,null,{"$f":"IFERROR(SUM(Ostunimekiri[[#This Row],[Kogus]]*Ostunimekiri[[#This Row],[Hind]]), \"\")","v":{"v":0,"d":"0.00 €"}}]
[null,null,"Lehtsalat","Puu- ja köögiviljad",null,null,{"$f":"IFERROR(SUM(Ostunimekiri[[#This Row],[Kogus]]*Ostunimekiri[[#This Row],[Hind]]), \"\")","v":{"v":0,"d":"0.00 €"}}]
[null,null,"Tomatid","Puu- ja köögiviljad",null,null,{"$f":"IFERROR(SUM(Ostunimekiri[[#This Row],[Kogus]]*Ostunimekiri[[#This Row],[Hind]]), \"\")","v":{"v":0,"d":"0.00 €"}},"  "]
[null,null,"Piim ","Piimatooted",null,null,{"$f":"IFERROR(SUM(Ostunimekiri[[#This Row],[Kogus]]*Ostunimekiri[[#This Row],[Hind]]), \"\")","v":{"v":0,"d":"0.00 €"}}]
[null,null,"Juust","Piimatooted",null,null,{"$f":"IFERROR(SUM(Ostunimekiri[[#This Row],[Kogus]]*Ostunimekiri[[#This Row],[Hind]]), \"\")","v":{"v":0,"d":"0.00 €"}}]
[null,null,"Munad","Piimatooted",null,null,{"$f":"IFERROR(SUM(Ostunimekiri[[#This Row],[Kogus]]*Ostunimekiri[[#This Row],[Hind]]), \"\")","v":{"v":0,"d":"0.00 €"}}]
[null,null,"Kodujuust","Piimatooted",null,null,{"$f":"IFERROR(SUM(Ostunimekiri[[#This Row],[Kogus]]*Ostunimekiri[[#This Row],[Hind]]), \"\")","v":{"v":0,"d":"0.00 €"}}]
[null,null,"Veiseliha","Liha",null,null,{"$f":"IFERROR(SUM(Ostunimekiri[[#This Row],[Kogus]]*Ostunimekiri[[#This Row],[Hind]]), \"\")","v":{"v":0,"d":"0.00 €"}}]
[null,null,"Linnuliha","Liha",null,null,{"$f":"IFERROR(SUM(Ostunimekiri[[#This Row],[Kogus]]*Ostunimekiri[[#This Row],[Hind]]), \"\")","v":{"v":0,"d":"0.00 €"}}]
[null,null,"Sink","Liha",null,null,{"$f":"IFERROR(SUM(Ostunimekiri[[#This Row],[Kogus]]*Ostunimekiri[[#This Row],[Hind]]), \"\")","v":{"v":0,"d":"0.00 €"}}]
[null,null,"Mahl","Joogid",null,null,{"$f":"IFERROR(SUM(Ostunimekiri[[#This Row],[Kogus]]*Ostunimekiri[[#This Row],[Hind]]), \"\")","v":{"v":0,"d":"0.00 €"}}]
[null,null,"Kohv","Joogid",null,null,{"$f":"IFERROR(SUM(Ostunimekiri[[#This Row],[Kogus]]*Ostunimekiri[[#This Row],[Hind]]), \"\")","v":{"v":0,"d":"0.00 €"}}]
[null,null,"Tee","Joogid",null,null,{"$f":"IFERROR(SUM(Ostunimekiri[[#This Row],[Kogus]]*Ostunimekiri[[#This Row],[Hind]]), \"\")","v":{"v":0,"d":"0.00 €"}}]
[null,null,"Vesi","Joogid",null,null,{"$f":"IFERROR(SUM(Ostunimekiri[[#This Row],[Kogus]]*Ostunimekiri[[#This Row],[Hind]]), \"\")","v":{"v":0,"d":"0.00 €"}}]
[null,null,"Nuudlid","Teraviljad",null,null,{"$f":"IFERROR(SUM(Ostunimekiri[[#This Row],[Kogus]]*Ostunimekiri[[#This Row],[Hind]]), \"\")","v":{"v":0,"d":"0.00 €"}}]
[null,null,"Riis","Teraviljad",null,null,{"$f":"IFERROR(SUM(Ostunimekiri[[#This Row],[Kogus]]*Ostunimekiri[[#This Row],[Hind]]), \"\")","v":{"v":0,"d":"0.00 €"}}]
[null,null,"Konservid","Supp",null,null,{"$f":"IFERROR(SUM(Ostunimekiri[[#This Row],[Kogus]]*Ostunimekiri[[#This Row],[Hind]]), \"\")","v":{"v":0,"d":"0.00 €"}}]
[null,null,"Maitseainesegu","Supp",null,null,{"$f":"IFERROR(SUM(Ostunimekiri[[#This Row],[Kogus]]*Ostunimekiri[[#This Row],[Hind]]), \"\")","v":{"v":0,"d":"0.00 €"}}]
[null,null,"Leib","Pagaritooted",null,null,{"$f":"IFERROR(SUM(Ostunimekiri[[#This Row],[Kogus]]*Ostunimekiri[[#This Row],[Hind]]), \"\")","v":{"v":0,"d":"0.00 €"}}]
[null,null,"Kartulikrõpsud","Snäkid",null,null,{"$f":"IFERROR(SUM(Ostunimekiri[[#This Row],[Kogus]]*Ostunimekiri[[#This Row],[Hind]]), \"\")","v":{"v":0,"d":"0.00 €"}}]
[null,null,"Soolakringlid","Snäkid",null,null,{"$f":"IFERROR(SUM(Ostunimekiri[[#This Row],[Kogus]]*Ostunimekiri[[#This Row],[Hind]]), \"\")","v":{"v":0,"d":"0.00 €"}}]
[null,null,"Jäätis","Snäkid",null,null,{"$f":"IFERROR(SUM(Ostunimekiri[[#This Row],[Kogus]]*Ostunimekiri[[#This Row],[Hind]]), \"\")","v":{"v":0,"d":"0.00 €"}}]
[null,null,"Küpsised","Snäkid",null,null,{"$f":"IFERROR(SUM(Ostunimekiri[[#This Row],[Kogus]]*Ostunimekiri[[#This Row],[Hind]]), \"\")","v":{"v":0,"d":"0.00 €"}}]
[null,null,"Papptaldrikud","Tarbeesemed",null,null,{"$f":"IFERROR(SUM(Ostunimekiri[[#This Row],[Kogus]]*Ostunimekiri[[#This Row],[Hind]]), \"\")","v":{"v":0,"d":"0.00 €"}}]
[null,null,"Salvrätikud","Tarbeesemed",null,null,{"$f":"IFERROR(SUM(Ostunimekiri[[#This Row],[Kogus]]*Ostunimekiri[[#This Row],[Hind]]), \"\")","v":{"v":0,"d":"0.00 €"}}]
[{"$nulls":6},{"$f":"SUBTOTAL(109,Ostunimekiri[Laiendatud hind])","v":{"v":0,"d":"0.00 €"}}]